bitfinex/quotes_SOLUSD_20241110
["timestamp","ask_amount","ask_price","bid_price","bid_amount"]
[1731269407520,36.08468475,207.49,207.42,36.08468475]
[1731269407818,36.08468475,207.51,207.44,36.08468475]
[1731269408021,42.59648475,207.55,207.48,36.08468475]
[1731269408206,42.59648475,207.55,207.4,36.08468475]
[1731269408207,6.5118,207.55,207.49,36.08468475]
[1731269408402,42.59648475,207.55,207.48,40.90428475]
[1731269408619,36.08468475,207.49,207.42,36.08468475]
[1731269408815,36.08468475,207.5,207.42,36.08468475]
[1731269409022,36.08468475,207.51,207.44,36.08468475]
[1731269409607,36.08468475,207.49,207.4,12.0536]
[1731269409823,36.08468475,207.51,207.43,36.08468475]
[1731269410205,36.08468475,207.49,207.43,36.08468475]
[1731269410514,36.08468475,207.49,207.43,40.90538475]
[1731269411224,36.08468475,207.51,207.43,52.95758475]
[1731269411536,36.08468475,207.47,207.41,4.8213]
[1731269411702,36.08468475,207.45,207.38,4.8218]
[1731269411903,36.08468475,207.45,207.38,16.8769]
[1731269412125,36.08468475,207.43,207.38,16.8769]
[1731269412512,36.08468475,207.39,207.32,12.058]
[1731269412703,36.08468475,207.37,207.32,12.058]
[1731269412919,22.4004,207.41,207.34,36.08468475]
[1731269413625,36.08468475,207.4,207.34,36.08468475]
[1731269414216,22.4004,207.41,207.34,36.08468475]
[1731269414420,22.4004,207.41,207.35,4.8227]
[1731269415011,22.4004,207.41,207.35,16.8796]
[1731269415323,16.2154,207.41,207.36,36.08468475]
[1731269416325,16.2154,207.41,207.38,36.08468475]
[1731269416530,16.2154,207.41,207.36,52.96348475]
[1731269416830,16.2154,207.41,207.36,16.8788]
[1731269417220,16.2154,207.41,207.37,36.08468475]
[1731269417531,16.2154,207.41,207.36,52.96348475]
[1731269418038,42.26968475,207.47,207.4,36.08468475]
[1731269418721,6.185,207.47,207.41,52.95938475]
[1731269420131,6.185,207.47,207.44,36.08468475]
[1731269420310,6.185,207.47,207.35,40.9934]
[1731269420311,16.2154,207.48,207.45,36.08468475]
[1731269420515,16.2154,207.48,207.44,36.08468475]
[1731269420735,16.2154,207.48,207.35,41.0934]
[1731269420736,16.2154,207.48,207.42,36.08468475]
[1731269420942,16.2154,207.48,207.35,40.9934]
[1731269420943,36.08468475,207.47,207.4,36.08468475]
[1731269421117,36.08468475,207.44,207.36,36.08468475]
[1731269421311,36.08468475,207.4,207.35,16.8796]
[1731269421913,36.08468475,207.4,207.32,24.1166]
[1731269421914,42.26968475,207.38,207.33,4.823]
[1731269422135,16.2154,207.33,207.23,36.08468475]
[1731269422318,36.08468475,207.29,207.21,36.08468475]
[1731269422522,36.08468475,207.28,207.21,36.08468475]
[1731269422724,36.08468475,207.26,207.19,36.08468475]
[1731269422912,16.2154,207.33,207.18,16.8935]
[1731269422913,36.08468475,207.28,207.22,36.08468475]
[1731269423122,36.08468475,207.29,207.22,36.08468475]
[1731269423431,59.86156875,207.31,207.24,16.8886]
[1731269423821,36.08468475,207.31,207.24,52.97328475]
[1731269424127,36.08468475,207.29,207.24,16.8886]
[1731269424732,36.08468475,207.31,207.24,52.97328475]
[1731269425033,16.2154,207.33,207.24,52.97328475]
[1731269425034,36.08468475,207.32,207.24,52.97328475]
[1731269425235,16.2154,207.39,207.31,36.08468475]
[1731269425443,36.08468475,207.38,207.32,16.882]
[1731269425625,36.08468475,207.35,207.27,48.14588475]
[1731269425829,36.08468475,207.3,207.12,24.3396]
[1731269426138,36.08468475,207.3,207.13,0.1]
[1731269426432,36.08468475,207.3,207.22,36.08468475]
[1731269426637,36.08468475,207.28,207.2,36.08468475]
[1731269427447,36.08468475,207.28,207.21,4.826]
[1731269427743,36.08468475,207.28,207.22,36.08468475]
[1731269427939,16.2154,207.31,207.21,4.826]
[1731269427940,16.2154,207.31,207.25,36.08468475]
[1731269428126,52.30008475,207.31,207.23,36.08468475]
[1731269428931,52.30008475,207.31,207.25,36.08468475]
[1731269429733,52.30008475,207.31,207.26,4.8248]
[1731269430930,16.2154,207.31,207.26,4.8248]
[1731269431140,52.30008475,207.31,207.26,4.8248]
[1731269431445,52.30008475,207.31,207.25,12.0624]
[1731269431619,52.30008475,207.31,207.19,24.1323]
[1731269431620,36.08468475,207.26,207.2,16.8915]
[1731269431821,36.08468475,207.24,207.2,12.0653]
[1731269432029,36.08468475,207.24,207.2,16.8915]
[1731269432543,23.776884,207.21,207.15,12.0683]
[1731269432757,36.08468475,207.18,207.1,16.8997]
[1731269433045,36.08468475,207.19,207.12,36.08468475]
[1731269433243,59.86156875,207.21,207.12,36.08468475]
[1731269433559,59.86156875,207.21,207.1,16.8997]
[1731269433560,36.08468475,207.23,207.16,36.08468475]
[1731269433843,36.08468475,207.26,207.19,36.08468475]
[1731269434046,16.2154,207.31,207.2,36.08468475]
[1731269434047,36.08468475,207.28,207.2,36.08468475]
[1731269434221,36.08468475,207.28,207.21,36.08468475]
[1731269434528,36.08468475,207.29,207.22,36.08468475]
[1731269435046,0.12549,207.28,207.22,36.08468475]
[1731269435539,36.08468475,207.3,207.23,52.97398475]
[1731269435737,36.08468475,207.28,207.23,16.8893]
[1731269435942,36.08468475,207.26,207.21,4.8259]
[1731269436119,0.12549,207.27,207.22,36.08468475]
[1731269436322,36.08468475,207.3,207.23,36.08468475]
[1731269436543,52.30008475,207.31,207.24,36.08468475]
[1731269436939,52.30008475,207.31,207.14,0.2]
[1731269436940,36.08468475,207.25,207.15,12.0682]
[1731269437128,36.08468475,207.2,207.15,12.0682]
[1731269437328,36.08468475,207.18,207.12,4.8279]
[1731269439247,36.08468475,207.16,207.12,4.8279]
[1731269439542,36.08468475,207.14,207.04,36.08468475]
[1731269439849,51.88418475,207.18,207.1,36.08468475]
[1731269440346,15.7995,207.18,207.12,36.08468475]
[1731269441146,15.7995,207.18,207.13,16.8975]
[1731269441446,36.08468475,207.22,207.14,36.08468475]
[1731269441946,36.08468475,207.24,207.16,36.08468475]
[1731269442238,0.12549,207.23,207.16,26.08468475]
[1731269442444,36.08468475,207.2,207.13,16.8975]
[1731269443237,36.08468475,207.22,207.14,36.08468475]
[1731269443442,21.8897,207.25,207.13,16.8975]
[1731269443443,21.8897,207.25,207.18,36.08468475]
[1731269443628,21.8897,207.25,207.2,36.08468475]
[1731269443629,15.7995,207.25,207.2,36.08468475]
[1731269443830,6.0902,207.31,207.24,36.08468475]
[1731269444327,0.12549,207.3,207.24,36.08468475]
[1731269444927,36.08468475,207.26,207.18,36.08468475]
[1731269445237,36.08468475,207.24,207.17,16.8942]
[1731269446058,36.08468475,207.26,207.18,36.08468475]
[1731269446238,0.12549,207.3,207.22,36.08468475]
[1731269446239,36.21017475,207.3,207.22,36.08468475]
[1731269446431,6.0902,207.31,207.24,36.08468475]
[1731269446626,6.0902,207.31,207.26,36.08468475]
[1731269446847,15.7995,207.32,207.28,36.08468475]
[1731269447052,15.7995,207.32,207.3,4.8239]
[1731269447239,15.7995,207.32,207.28,12.0606]
[1731269447547,36.08468475,207.34,207.28,16.8848]
[1731269447844,0.12549,207.3,207.28,16.8849]
[1731269448146,36.08468475,207.32,207.28,16.8849]
[1731269448349,6.0634,207.37,207.3,36.08468475]
[1731269448647,0.12549,207.36,207.3,36.08468475]
[1731269448843,36.08468475,207.32,207.28,16.8849]
[1731269449241,36.08468475,207.34,207.28,48.14528475]
[1731269449440,36.08468475,207.36,207.3,36.08468475]
[1731269449639,36.08468475,207.36,207.28,48.14528475]
[1731269450725,0.12549,207.35,207.28,12.0606]
[1731269450931,36.08468475,207.3,207.28,12.0606]
[1731269451541,36.08468475,207.34,207.27,36.08468475]
[1731269451737,0.12549,207.35,207.28,36.08468475]
[1731269451940,36.21017475,207.35,207.28,36.08468475]
[1731269452935,36.08468475,207.31,207.25,24.1254]
[1731269453154,36.08468475,207.29,207.23,41.0164]
[1731269453730,36.08468475,207.33,207.24,36.08468475]
[1731269453931,36.08468475,207.31,207.23,41.0164]
[1731269454148,36.08468475,207.29,207.23,41.0164]
[1731269454927,36.08468475,207.29,207.23,36.1909]
[1731269458337,0.12549,207.35,207.19,4.8263]
[1731269458338,36.08468475,207.24,207.19,4.8263]
[1731269458536,36.08468475,207.26,207.19,4.8263]
[1731269458950,36.08468475,207.26,207.19,52.97718475]
[1731269459155,36.08468475,207.32,207.23,36.08468475]
[1731269459363,36.08468475,207.32,207.25,36.08468475]
[1731269460234,36.08468475,207.32,207.26,16.8869]
[1731269460652,36.08468475,207.3,207.26,16.8869]
[1731269460959,36.08468475,207.28,207.26,12.0621]
[1731269461154,36.08468475,207.28,207.26,16.8869]
[1731269461359,36.08468475,207.31,207.26,16.8869]
[1731269461537,36.08468475,207.31,207.23,36.08468475]
[1731269461741,36.08468475,207.27,207.19,36.08468475]
[1731269462551,36.08468475,207.23,207.2,12.0656]
[1731269462761,36.08468475,207.21,207.2,12.0656]
[1731269463260,36.08468475,207.23,207.2,16.8918]
[1731269463645,16.5774,207.24,207.2,16.8918]
[1731269463963,36.08468475,207.23,207.2,16.8918]
[1731269464334,36.08468475,207.21,207.16,16.895]
[1731269465836,36.08468475,207.19,207.16,16.895]
[1731269466256,36.08468475,207.21,207.16,16.895]
[1731269466460,36.08468475,207.21,207.16,12.0679]
[1731269466661,23.1184,207.24,207.16,12.0679]
[1731269466662,36.08468475,207.19,207.16,12.0679]
[1731269467042,36.08468475,207.21,207.16,12.0679]
[1731269467260,36.08468475,207.17,207.16,12.0679]
[1731269467573,36.08468475,207.17,207.11,12.0704]
[1731269467859,36.08468475,207.15,207.12,4.8279]
[1731269468466,36.08468475,207.15,207.09,24.1433]
[1731269468760,36.08468475,207.15,207.08,16.9016]
[1731269469348,36.08468475,207.17,207.09,36.08468475]
[1731269469670,36.08468475,207.15,207.08,16.9016]
[1731269469970,36.08468475,207.15,207.08,41.0468]
[1731269470145,36.08468475,207.15,207.08,16.9016]
[1731269471550,36.08468475,207.19,207.11,36.08468475]
[1731269471860,36.08468475,207.21,207.13,36.08468475]
[1731269472086,23.1184,207.24,207.17,36.08468475]
[1731269472253,36.08468475,207.23,207.15,36.08468475]
[1731269472453,0.12549,207.22,207.15,36.08468475]
[1731269472862,23.1184,207.24,207.17,36.08468475]
[1731269473161,6.4448,207.3,207.23,36.08468475]
[1731269473360,36.08468475,207.35,207.28,36.08468475]
[1731269473569,22.7028,207.38,207.1,36.08468475]
[1731269473570,36.08468475,207.29,207.25,12.0627]
[1731269473743,0.1,207.34,207.18,36.08468475]
[1731269474068,36.08468475,207.28,207.2,36.08468475]
[1731269474567,36.08468475,207.36,207.26,36.08468475]
[1731269474866,16.258,207.38,207.32,36.08468475]
[1731269475073,36.08468475,207.42,207.34,36.08468475]
[1731269475565,36.08468475,207.42,207.35,16.8796]
[1731269475764,6.4448,207.43,207.36,36.08468475]
[1731269475957,36.08468475,207.46,207.38,36.08468475]
[1731269476272,36.08468475,207.44,207.36,36.08468475]
[1731269476473,36.08468475,207.46,207.38,36.08468475]
[1731269477146,36.08468475,207.48,207.4,36.08468475]
[1731269477351,16.258,207.51,207.45,36.08468475]
[1731269477551,5.32792822,207.55,207.5,16.8673]
[1731269477767,6.4448,207.56,207.51,36.08468475]
[1731269477947,16.258,207.59,207.55,36.08468475]
[1731269478144,36.08468475,207.63,207.55,36.08468475]
[1731269478353,36.08468475,207.63,207.5,77.04828475]
[1731269478354,36.08468475,207.59,207.51,36.08468475]
[1731269478851,36.08468475,207.57,207.5,16.8673]
[1731269479062,36.08468475,207.55,207.5,16.8673]
[1731269479371,36.08468475,207.55,207.38,0.1]
[1731269479372,36.08468475,207.51,207.43,12.0516]
[1731269479553,36.08468475,207.49,207.43,16.8725]
[1731269480375,16.258,207.52,207.45,36.08468475]
[1731269480555,36.08468475,207.53,207.45,36.08468475]
[1731269480759,36.08468475,207.55,207.47,36.08468475]
[1731269481470,0.12549,207.54,207.47,36.08468475]
[1731269481847,36.08468475,207.55,207.48,16.869]
[1731269482461,36.08468475,207.53,207.48,16.869]
[1731269482663,21.0752,207.59,207.48,16.869]
[1731269482664,36.08468475,207.57,207.49,36.08468475]
[1731269482964,5.37088632,207.7,207.55,36.08468475]
[1731269483168,58.78748475,207.72,207.63,36.08468475]
[1731269483664,0.12549,207.71,207.63,36.08468475]
[1731269483863,58.78748475,207.72,207.64,4.816]
[1731269484261,58.78748475,207.72,207.64,16.856]
[1731269484467,0.12549,207.71,207.64,16.856]
[1731269484679,16.258,207.72,207.65,36.08468475]
[1731269484854,36.08468475,207.7,207.64,16.856]
[1731269485474,36.08468475,207.7,207.64,12.04]
[1731269485671,36.08468475,207.7,207.64,16.856]
[1731269486170,36.08468475,207.66,207.58,12.0432]
[1731269486371,36.08468475,207.64,207.58,12.0432]
[1731269487872,36.08468475,207.68,207.58,48.12788475]
[1731269488175,36.08468475,207.7,207.62,36.08468475]
[1731269489874,36.08468475,207.7,207.63,16.8568]
[1731269490257,0.12549,207.69,207.63,16.8568]
[1731269490974,36.08468475,207.64,207.57,12.0438]
[1731269491275,36.08468475,207.64,207.57,16.8614]
[1731269491654,36.08468475,207.66,207.58,36.08468475]
[1731269491853,36.08468475,207.66,207.59,4.8171]
[1731269492166,36.08468475,207.66,207.59,16.86]
[1731269492851,36.08468475,207.68,207.6,36.08468475]
[1731269493373,36.08468475,207.66,207.6,12.0423]
[1731269493757,36.08468475,207.64,207.6,12.0423]
[1731269493969,36.08468475,207.62,207.54,48.12998475]
[1731269494851,36.08468475,207.6,207.54,12.0453]
[1731269495049,36.08468475,207.56,207.51,4.819]
[1731269495873,36.08468475,207.58,207.5,48.13278475]
[1731269497078,36.08468475,207.6,207.5,48.13278475]
[1731269497966,36.08468475,207.6,207.5,52.95198475]
[1731269499065,36.08468475,207.56,207.5,16.8673]
[1731269499273,36.08468475,207.54,207.5,16.8673]
[1731269499474,36.08468475,207.56,207.5,16.8673]
[1731269499767,51.80548475,207.58,207.5,52.95198475]
[1731269500355,36.08468475,207.6,207.52,36.08468475]
[1731269500652,36.08468475,207.63,207.55,36.08468475]
[1731269500973,36.08468475,207.61,207.53,36.08468475]
[1731269501156,36.08468475,207.59,207.51,36.08468475]
[1731269501972,36.08468475,207.61,207.55,36.08468475]
[1731269502679,6.4452,207.64,207.57,36.08468475]
[1731269502868,51.80548475,207.65,207.57,36.08468475]
[1731269503054,36.08468475,207.67,207.59,36.08468475]
[1731269503558,6.2534,207.7,207.57,36.08468475]
[1731269503559,36.08468475,207.65,207.57,36.08468475]
[1731269504259,36.08468475,207.63,207.55,36.08468475]
[1731269504790,0.12549,207.66,207.59,36.08468475]
[1731269506163,36.08468475,207.69,207.61,36.08468475]
[1731269506562,6.2534,207.76,207.65,36.08468475]
[1731269506870,36.08468475,207.73,207.65,36.08468475]
[1731269507372,36.08468475,207.67,207.6,16.8592]
[1731269507576,15.7208,207.72,207.66,36.08468475]
[1731269507782,15.7208,207.72,207.68,36.08468475]
[1731269508082,15.7208,207.72,207.66,36.08468475]
[1731269508473,15.7208,207.72,207.67,16.8536]
[1731269509071,15.7208,207.72,207.67,52.93828475]
[1731269511189,36.08468475,207.7,207.67,12.0383]
[1731269511395,36.08468475,207.68,207.63,4.816]
[1731269511677,36.08468475,207.64,207.59,4.817]
[1731269512488,36.08468475,207.6,207.57,16.8609]
[1731269512796,36.08468475,207.58,207.57,12.0435]
[1731269513088,36.08468475,207.58,207.53,12.0464]
[1731269513863,36.08468475,207.56,207.53,12.0464]
[1731269514068,36.08468475,207.54,207.53,12.0464]
[1731269514377,36.08468475,207.54,207.51,4.819]
[1731269514578,36.08468475,207.52,207.49,4.8193]
[1731269515283,36.08468475,207.52,207.45,36.08468475]
[1731269515787,36.08468475,207.5,207.43,12.052]
[1731269516096,36.08468475,207.48,207.43,12.052]
[1731269516590,36.08468475,207.46,207.43,12.052]
[1731269518386,6.4066,207.49,207.43,48.13668475]
[1731269518592,36.08468475,207.52,207.43,48.13668475]
[1731269518771,36.08468475,207.5,207.43,12.052]
[1731269519278,36.08468475,207.5,207.43,48.13668475]
[1731269519480,36.08468475,207.5,207.43,52.95758475]
[1731269519997,36.08468475,207.44,207.34,4.8229]
[1731269520194,36.08468475,207.38,207.34,4.8229]
[1731269520699,36.08468475,207.36,207.34,4.8229]
[1731269520876,36.08468475,207.38,207.34,4.8229]
[1731269521073,36.08468475,207.38,207.33,12.0579]
[1731269521684,36.08468475,207.4,207.33,12.0579]
[1731269522298,36.08468475,207.42,207.33,12.0579]
[1731269522596,36.08468475,207.42,207.34,36.08468475]
[1731269523396,36.08468475,207.42,207.35,16.8796]
[1731269523692,42.49128475,207.46,207.38,36.08468475]
[1731269524368,51.20208475,207.48,207.4,36.08468475]
[1731269525084,36.08468475,207.46,207.38,36.08468475]
[1731269525281,36.08468475,207.46,207.39,16.8763]
[1731269526092,36.08468475,207.46,207.4,36.08468475]
[1731269526293,15.1174,207.48,207.42,36.08468475]
[1731269526488,6.4066,207.52,207.46,36.08468475]
[1731269526689,42.49128475,207.52,207.44,36.08468475]
[1731269527706,42.49128475,207.52,207.45,16.8714]
[1731269527881,36.08468475,207.48,207.45,12.051]
[1731269528195,36.08468475,207.46,207.4,12.0538]
[1731269528406,36.08468475,207.44,207.4,12.0538]
[1731269528690,36.08468475,207.48,207.4,48.13848475]
[1731269528902,36.08468475,207.5,207.42,36.08468475]
[1731269529192,42.49128475,207.52,207.44,36.08468475]
[1731269529584,36.08468475,207.5,207.42,36.08468475]
[1731269530092,36.08468475,207.5,207.4,16.8756]
[1731269530093,42.49128475,207.52,207.44,36.08468475]
[1731269530488,6.4066,207.52,207.46,36.08468475]
[1731269530696,42.49128475,207.52,207.44,36.08468475]
[1731269531574,42.49128475,207.52,207.45,16.8714]
[1731269532125,36.08468475,207.48,207.45,16.8714]
[1731269532401,36.08468475,207.48,207.4,60.19268475]
[1731269532402,36.08468475,207.46,207.41,4.8213]
[1731269532616,36.08468475,207.46,207.28,0.1]
[1731269532617,36.08468475,207.43,207.35,12.0567]
[1731269532897,16.4829,207.42,207.35,12.0567]
[1731269533686,21.3041,207.42,207.28,24.1214]
[1731269533883,36.08468475,207.37,207.29,36.08468475]
[1731269535196,36.08468475,207.33,207.3,12.0598]
[1731269535395,36.08468475,207.31,207.25,12.0624]
[1731269535615,36.08468475,207.29,207.25,12.0624]
[1731269535975,36.08468475,207.27,207.23,4.8255]
[1731269536705,36.08468475,207.27,207.2,12.0653]
[1731269536706,36.08468475,207.25,207.2,12.0653]
[1731269536884,36.08468475,207.21,207.15,12.0684]
[1731269537079,36.08468475,207.19,207.15,12.0684]
[1731269537278,36.08468475,207.21,207.15,12.0684]
[1731269537485,36.08468475,207.19,207.15,12.0684]
[1731269538108,36.08468475,207.21,207.15,12.0684]
[1731269538700,36.08468475,207.19,207.15,12.0684]
[1731269538996,36.08468475,207.17,207.1,12.0714]
[1731269539195,36.08468475,207.19,207.1,48.15608475]
[1731269539695,36.08468475,207.17,207.1,48.15608475]
[1731269540007,36.08468475,207.17,207.1,52.98458475]
[1731269540208,36.08468475,207.19,207.1,52.98458475]
[1731269540500,36.08468475,207.23,207.14,36.08468475]
[1731269540681,6.4562,207.24,207.1,77.12748475]
[1731269540682,36.08468475,207.19,207.12,36.08468475]
[1731269541284,36.08468475,207.17,207.1,52.98458475]
[1731269541705,36.08468475,207.12,207.06,4.8294]
[1731269541890,36.08468475,207.1,207.05,12.0743]
[1731269542199,36.08468475,207.14,207.06,36.08468475]
[1731269543888,36.08468475,207.1,207.05,12.0743]
[1731269545096,36.08468475,207.12,207.05,12.0743]
[1731269546191,36.08468475,207.12,207.05,16.904]
[1731269547096,36.08468475,207.12,207.06,36.08468475]
[1731269547297,36.08468475,207.14,207.06,36.08468475]
[1731269547814,36.08468475,207.14,207.07,16.9024]
[1731269548195,36.08468475,207.1,207.07,12.0732]
[1731269549783,36.08468475,207.21,207.1,16.8999]
[1731269549995,36.08468475,207.15,207.1,16.8999]
[1731269550393,36.08468475,207.13,207.1,12.0714]
[1731269551113,36.08468475,207.13,207.05,36.08468475]
[1731269551114,36.08468475,207.11,207.05,16.9038]
[1731269551408,52.43418475,207.13,207.05,52.98848475]
[1731269551783,16.3495,207.13,207.07,36.08468475]
[1731269551986,16.3495,207.13,207.08,16.9016]
[1731269552206,36.08468475,207.17,207.09,36.08468475]
[1731269552411,36.08468475,207.19,207.12,36.08468475]
[1731269552595,36.08468475,207.17,207.09,36.08468475]
[1731269552911,0.12549,207.14,207.08,16.9016]
[1731269553087,52.43418475,207.2,207.08,16.9016]
[1731269553088,36.08468475,207.19,207.11,36.08468475]
[1731269553284,36.08468475,207.19,207.08,41.0468]
[1731269553501,36.08468475,207.17,207.09,36.08468475]
[1731269553715,36.08468475,207.15,207.08,41.0468]
[1731269554698,0.12549,207.16,206.98,0.1]
[1731269554895,36.08468475,207.14,207.06,36.08468475]
[1731269555190,36.08468475,207.12,207.04,36.08468475]
[1731269555606,36.08468475,207.14,207.06,36.08468475]
[1731269555792,0.12549,207.16,207.08,36.08468475]
[1731269556107,36.21017475,207.16,207.1,36.08468475]
[1731269556314,36.21017475,207.16,207.11,4.8283]
[1731269556516,36.08468475,207.14,207.11,4.8283]
[1731269556802,0.12549,207.16,207.11,4.8283]
[1731269556803,36.21017475,207.16,207.11,4.8283]
[1731269557392,36.21017475,207.16,207.09,12.0715]
[1731269557393,36.21017475,207.16,207.09,16.9003]
[1731269557794,36.21017475,207.16,207.08,36.08468475]
[1731269557795,36.08468475,207.12,207.04,48.15918475]
[1731269557993,36.08468475,207.1,207.02,36.08468475]
[1731269558189,0.12549,207.16,207.07,36.08468475]
[1731269558394,36.08468475,207.15,207.07,36.08468475]
[1731269559392,36.08468475,207.13,207.08,12.0726]
[1731269559600,36.08468475,207.09,207.01,36.08468475]
[1731269560001,36.08468475,207.09,207.03,36.08468475]
[1731269560693,36.08468475,207.1,207.03,36.08468475]
[1731269560896,36.08468475,207.05,207.0,12.0772]
[1731269561203,36.08468475,207.04,207.0,12.0772]
[1731269561512,36.08468475,207.05,207.0,12.0772]
[1731269562218,36.08468475,207.1,207.0,12.0772]
[1731269562219,36.08468475,207.04,207.0,12.0772]
[1731269562720,36.08468475,207.03,207.0,12.0772]
[1731269562914,36.08468475,207.04,207.0,12.0772]
[1731269563107,36.08468475,207.04,206.98,4.8313]
[1731269563700,36.08468475,207.03,206.98,4.8313]
[1731269564103,36.08468475,207.04,206.98,4.8313]
[1731269564615,36.08468475,207.03,206.98,4.8313]
[1731269564816,36.08468475,206.99,206.91,36.08468475]
[1731269565020,36.08468475,206.99,206.92,4.8327]
[1731269565200,36.08468475,206.98,206.92,4.8327]
[1731269565402,36.08468475,206.96,206.9,4.833]
[1731269565906,36.08468475,206.94,206.9,12.0831]
[1731269566223,23.776884,206.91,206.82,29.54880926]
[1731269566514,23.776884,206.91,206.82,24.149707]
[1731269566896,23.876884,206.91,206.82,19.314807]
[1731269567093,6.3058,206.89,206.82,19.314807]
[1731269567306,36.08468475,206.83,206.82,19.314807]
[1731269567497,76.31106875,206.83,206.82,2.648207]
[1731269567708,76.31106875,206.83,206.7,12.0947]
[1731269567709,30.72081176,206.82,206.7,12.0947]
[1731269567893,30.72081176,206.82,206.7,48.17938475]
[1731269567894,36.08468475,206.77,206.7,48.17938475]
[1731269568098,36.08468475,206.77,206.7,12.0947]
[1731269568328,23.776884,206.82,206.72,36.08468475]
[1731269568617,36.08468475,206.79,206.7,53.01728475]
[1731269568819,16.4495,206.83,206.7,16.9326]
[1731269568820,36.08468475,206.77,206.7,16.9326]
[1731269569011,36.08468475,206.79,206.72,36.08468475]
[1731269569193,36.08468475,206.82,206.74,36.08468475]
[1731269569395,16.3495,206.83,206.7,16.9326]
[1731269569396,36.08468475,206.8,206.73,36.08468475]
[1731269569610,36.08468475,206.76,206.7,16.9326]
[1731269569843,0.1,206.81,206.7,16.9326]
[1731269569844,36.08468475,206.74,206.7,16.9326]
[1731269570236,36.08468475,206.8,206.72,36.08468475]
[1731269570419,16.3495,206.83,206.7,16.9326]
[1731269570626,36.08468475,206.82,206.74,36.08468475]
[1731269570851,36.08468475,206.82,206.75,36.08468475]
[1731269571142,36.08468475,206.8,206.77,1.0]
[1731269571319,23.776884,206.79,206.77,1.0]
[1731269571522,23.776884,206.81,206.77,1.0]
[1731269572037,36.08468475,206.79,206.77,1.0]
[1731269572335,36.08468475,206.78,206.77,1.0]
[1731269572532,59.86156875,206.78,206.77,1.0]
[1731269572740,36.08468475,206.78,206.77,1.0]
[1731269572948,59.86156875,206.78,206.77,1.0]
[1731269573132,65.88726875,206.78,206.77,1.0]
[1731269573334,6.0257,206.78,206.77,1.0]
[1731269575118,36.08468475,206.78,206.77,1.0]
[1731269575409,36.08468475,206.8,206.77,1.0]
[1731269575609,16.3495,206.83,206.77,1.0]
[1731269575610,36.21017475,206.78,206.77,1.0]
[1731269576423,0.12549,206.78,206.77,1.0]
[1731269577133,36.08468475,206.79,206.77,1.0]
[1731269577318,36.08468475,206.81,206.77,1.0]
[1731269578431,6.0257,206.84,206.77,17.9268]
[1731269579203,36.21017475,206.83,206.77,17.9268]
[1731269579425,36.08468475,206.79,206.77,1.0]
[1731269580522,40.92048475,206.79,206.77,1.0]
[1731269580728,36.08468475,206.81,206.77,1.0]
[1731269580904,36.08468475,206.79,206.77,1.0]
[1731269581105,23.776884,206.78,206.77,1.0]
[1731269581410,36.08468475,206.79,206.77,1.0]
[1731269582014,39.309984,206.78,206.77,1.0]
[1731269582310,39.209984,206.78,206.77,1.0]
[1731269582515,20.1691,206.78,206.77,1.0]
[1731269583533,36.08468475,206.8,206.77,1.0]
[1731269583723,36.08468475,206.78,206.77,1.0]
[1731269584029,0.1,206.83,206.77,1.0]
[1731269584030,36.08468475,206.83,206.77,1.0]
[1731269584408,6.0257,206.84,206.79,36.08468475]
[1731269584734,36.08468475,206.87,206.79,36.08468475]
[1731269585032,36.08468475,206.87,206.77,1.0]
[1731269585229,0.12549,206.86,206.79,36.08468475]
[1731269585431,46.94388475,206.89,206.81,36.08468475]
[1731269585611,36.08468475,206.87,206.79,36.08468475]
[1731269585806,36.08468475,206.83,206.77,1.0]
[1731269586022,36.08468475,206.81,206.77,1.0]
[1731269586218,36.08468475,206.79,206.77,1.0]
[1731269586726,0.1,206.85,206.77,1.0]
[1731269586727,36.08468475,206.81,206.77,1.0]
[1731269587233,36.08468475,206.79,206.77,1.0]
[1731269587431,40.92008475,206.81,206.77,1.0]
[1731269587634,36.08468475,206.79,206.77,1.0]
[1731269588529,11.0617,206.78,206.77,1.0]
[1731269588827,0.1,206.75,206.72,0.48374613]
[1731269589034,36.08468475,206.73,206.72,0.48374613]
[1731269589732,36.08468475,206.75,206.72,0.48374613]
[1731269590628,4.8369,206.74,206.72,0.48374613]
[1731269592033,36.08468475,206.73,206.72,0.48374613]
[1731269595138,24.180094,206.74,206.72,0.48374613]
[1731269595440,36.08468475,206.81,206.72,36.56843088]
[1731269595628,55.42265175,206.81,206.74,36.08468475]